bitfinex/quotes_SOLUSD_20250531
["timestamp","ask_amount","ask_price","bid_price","bid_amount"]
[1748672284918,22.03533438,154.8,154.76,22.03533438]
[1748672285116,28.49528418,154.8,154.76,22.03533438]
[1748672287951,6.4599498,154.8,154.76,22.03533438]
[1748672288121,6.45926086,154.82,154.78,22.03533438]
[1748672288450,28.49350281,154.85,154.8,22.03533438]
[1748672289428,28.49291252,154.86,154.82,22.03533438]
[1748672289732,6.45757814,154.86,154.82,22.03533438]
[1748672289926,28.49291252,154.86,154.82,22.03533438]
[1748672290250,192.42932249,154.87,154.82,22.03533438]
[1748672291829,22.03533438,154.86,154.82,22.03533438]
[1748672292436,28.4930724,154.86,154.82,22.03533438]
[1748672294534,28.49403101,154.83,154.79,10.12]
[1748672299043,22.03533438,154.82,154.79,10.12]
[1748672299248,22.03533438,154.81,154.79,10.12]
[1748672299569,22.03533438,154.81,154.77,22.03533438]
[1748672299771,28.49511824,154.81,154.76,28.03603438]
[1748672300274,28.49511824,154.81,154.76,22.03533438]
[1748672300441,22.03533438,154.8,154.75,58.15533438]
[1748672300641,22.03533438,154.79,154.75,32.15533438]
[1748672301151,22.03533438,154.79,154.75,10.12]
[1748672301461,22.03533438,154.78,154.75,10.12]
[1748672301841,28.49638672,154.78,154.75,10.12]
[1748672302567,6.46105234,154.78,154.75,32.15533438]
[1748672302772,28.4958301,154.79,154.75,32.15533438]
[1748672303270,6.46049572,154.79,154.75,32.15533438]
[1748672303437,28.4958301,154.79,154.75,32.15533438]
[1748672305167,28.4958301,154.79,154.75,10.12]
[1748672305371,22.03533438,154.78,154.75,10.12]
[1748672307868,28.49582007,154.79,154.75,10.12]
[1748672308172,28.49582007,154.79,154.75,32.15533438]
[1748672308482,28.49582007,154.79,154.75,10.12]
[1748672309043,22.03533438,154.78,154.75,10.12]
[1748672309751,6.46120049,154.77,154.75,10.12]
[1748672309961,28.49653487,154.77,154.71,30.36834886]
[1748672310159,28.49653487,154.77,154.72,22.03533438]
[1748672310761,22.03533438,154.76,154.71,33.75403438]
[1748672311176,22.03533438,154.76,154.71,32.15533438]
[1748672311878,6.46203554,154.75,154.71,32.15533438]
[1748672312056,22.03533438,154.74,154.71,10.12]
[1748672313179,145.9,154.78,154.73,22.03533438]
[1748672313384,145.9,154.78,154.75,22.03533438]
[1748672313687,28.49539988,154.8,154.75,22.03533438]
[1748672313688,22.03533438,154.8,154.75,22.03533438]
[1748672313868,28.49501455,154.81,154.76,22.03533438]
[1748672314248,28.49501455,154.81,154.74,6.46245314]
[1748672314482,22.03533438,154.8,154.75,22.03533438]
[1748672314873,22.03533438,154.8,154.75,28.4972578]
[1748672315754,28.49501455,154.81,154.76,22.03533438]
[1748672317487,22.03533438,154.8,154.75,22.03533438]
[1748672318364,28.49556821,154.8,154.75,22.03533438]
[1748672319182,28.49556821,154.8,154.75,28.49732385]
[1748672320384,28.49556821,154.8,154.75,22.03533438]
[1748672320886,22.03533438,154.79,154.74,22.03533438]
[1748672322461,6.45953103,154.81,154.74,22.03533438]
[1748672322689,22.03533438,154.79,154.74,22.03533438]
[1748672323990,22.03533438,154.8,154.75,22.03533438]
[1748672324184,28.49486541,154.81,154.76,22.03533438]
[1748672324585,28.49486541,154.81,154.76,28.49686696]
[1748672324879,28.49486541,154.81,154.76,22.03533438]
[1748672325390,28.49486541,154.81,154.74,6.46230929]
[1748672325565,22.03533438,154.79,154.74,28.49764367]
[1748672325993,22.03533438,154.79,154.74,22.03533438]
[1748672326871,28.49596116,154.79,154.74,22.03533438]
[1748672327980,22.03533438,154.77,154.73,10.12]
[1748672328182,22.03533438,154.75,154.7,22.03533438]
[1748672328700,22.03533438,154.76,154.71,22.03533438]
[1748672329083,6.46203554,154.75,154.71,22.03533438]
[1748672332898,22.03533438,154.75,154.71,22.03533438]
[1748672333301,22.03533438,154.75,154.69,18.1585]
[1748672333510,22.03533438,154.74,154.7,22.03533438]
[1748672336510,28.49754037,154.75,154.7,28.49937409]
[1748672338517,22.03533438,154.75,154.7,28.49937409]
[1748672338702,22.03533438,154.75,154.71,22.03533438]
[1748672340396,22.03533438,154.75,154.7,28.49937409]
[1748672340711,22.03533438,154.75,154.71,22.03533438]
[1748672341495,22.03533438,154.77,154.73,22.03533438]
[1748672342821,145.9,154.78,154.73,28.4978079]
[1748672342822,167.93533438,154.78,154.73,28.4978079]
[1748672343200,167.93533438,154.78,154.74,22.03533438]
[1748672343711,145.9,154.78,154.75,22.03533438]
[1748672344111,145.9,154.78,154.74,22.03533438]
[1748672344436,167.93533438,154.78,154.74,22.03533438]
[1748672344805,167.93533438,154.78,154.74,28.49754249]
[1748672348008,145.9,154.78,154.76,22.03533438]
[1748672348918,145.9,154.78,154.76,28.49681209]
[1748672349409,22.03533438,154.8,154.76,28.49681209]
[1748672351334,22.03533438,154.79,154.75,22.03533438]
[1748672351896,22.03533438,154.77,154.73,28.49820518]
[1748672352303,22.03533438,154.77,154.72,28.49853572]
[1748672353238,6.46011745,154.8,154.75,22.03533438]
[1748672353239,28.49545183,154.8,154.75,22.03533438]
[1748672353403,28.49545183,154.8,154.75,28.49714074]
[1748672353609,28.49545183,154.8,154.76,22.03533438]
[1748672353807,22.03533438,154.79,154.75,28.49714074]
[1748672355045,22.03533438,154.8,154.75,28.49714074]
[1748672355402,22.03533438,154.8,154.76,22.03533438]
[1748672356127,22.03533438,154.8,154.75,22.03533438]
[1748672356297,22.03533438,154.79,154.75,22.03533438]
[1748672357531,22.03533438,154.79,154.75,28.49713213]
[1748672358238,6.45965373,154.81,154.75,28.49713213]
[1748672358540,22.03533438,154.8,154.75,28.49713213]
[1748672359618,22.03533438,154.8,154.72,32.15533438]
[1748672359619,22.03533438,154.77,154.72,32.15533438]
[1748672359931,22.03533438,154.77,154.73,22.03533438]
[1748672360308,22.03533438,154.78,154.73,22.03533438]
[1748672360816,22.03533438,154.78,154.73,28.49799449]
[1748672361624,22.03533438,154.79,154.74,22.03533438]
[1748672361930,167.93533438,154.8,154.75,22.03533438]
[1748672362126,22.03533438,154.79,154.75,22.03533438]
[1748672363127,145.9,154.8,154.76,6.46161798]
[1748672363128,167.93533438,154.8,154.76,6.46161798]
[1748672363338,189.63760862,154.84,154.79,22.03533438]
[1748672363521,157.48227424,154.84,154.81,22.03533438]
[1748672363723,145.9,154.84,154.81,22.03533438]
[1748672363941,145.9,154.84,154.83,22.03533438]
[1748672364109,38.61206711,154.88,154.83,22.03533438]
[1748672364726,32.15533438,154.88,154.83,22.03533438]
[1748672364929,22.03533438,154.86,154.81,22.03533438]
[1748672365140,22.03533438,154.85,154.81,22.03533438]
[1748672365441,22.03533438,154.85,154.81,28.49453021]
[1748672365652,22.03533438,154.86,154.81,28.49453021]
[1748672366226,22.03533438,154.85,154.81,6.45919583]
[1748672367050,22.03533438,154.85,154.81,28.49453021]
[1748672367228,22.03533438,154.86,154.81,28.49453021]
[1748672367556,22.03533438,154.87,154.82,22.03533438]
[1748672368347,22.03533438,154.87,154.83,22.03533438]
[1748672368728,22.03533438,154.86,154.82,28.49437195]
[1748672369241,16.57673812,154.88,154.82,28.49437195]
[1748672369438,22.03533438,154.86,154.82,28.49437195]
[1748672369849,22.03533438,154.85,154.81,28.49472158]
[1748672370149,22.03533438,154.85,154.81,22.03533438]
[1748672370523,22.03533438,154.86,154.81,28.49481967]
[1748672370934,6.45725563,154.87,154.81,28.49481967]
[1748672371141,22.03533438,154.86,154.81,22.03533438]
[1748672371448,22.03533438,154.86,154.8,6.45980878]
[1748672371449,22.03533438,154.85,154.8,28.49514316]
[1748672371633,6.45725563,154.87,154.81,22.03533438]
[1748672371836,22.03533438,154.85,154.81,22.03533438]
[1748672372939,22.03533438,154.85,154.81,28.49479276]
[1748672373266,22.03533438,154.86,154.81,28.49479276]
[1748672375258,22.03533438,154.85,154.81,28.49479276]
[1748672375553,28.49282938,154.86,154.81,28.49479276]
[1748672376056,6.45714443,154.87,154.81,28.49479276]
[1748672376257,22.03533438,154.85,154.81,28.49479276]
[1748672376557,16.57701668,154.88,154.82,22.03533438]
[1748672376756,39.03143391,154.89,154.83,22.03533438]
[1748672376936,22.03533438,154.87,154.83,22.03533438]
[1748672378057,22.03533438,154.87,154.83,28.49371304]
[1748672380666,145.9,154.9,154.85,22.03533438]
[1748672380839,167.93533438,154.9,154.86,22.03533438]
[1748672381041,174.39121563,154.9,154.85,22.03533438]
[1748672381341,174.39121563,154.9,154.83,6.45837866]
[1748672381342,22.03533438,154.87,154.83,28.49371304]
[1748672381548,22.03533438,154.88,154.83,28.49371304]
[1748672382060,22.03533438,154.88,154.84,22.03533438]
[1748672382440,28.4916317,154.89,154.84,22.03533438]
[1748672382749,145.9,154.9,154.86,22.03533438]
[1748672384452,145.9,154.9,154.86,28.49255847]
[1748672384849,167.93533438,154.9,154.86,28.49255847]
[1748672385853,145.9,154.9,154.86,28.49255847]
[1748672386262,28.49072157,154.91,154.86,28.49255847]
[1748672386457,22.03533438,154.91,154.86,28.49255847]
[1748672388535,22.03533438,154.92,154.87,22.03533438]
[1748672390154,22.03533438,154.92,154.87,28.4920427]
[1748672390950,22.03533438,154.93,154.88,22.03533438]
[1748672391158,22.03533438,154.92,154.88,22.03533438]
[1748672391471,22.03533438,154.93,154.88,22.03533438]
[1748672391647,178.35382944,154.95,154.89,22.03533438]
[1748672391860,22.03533438,154.94,154.89,22.03533438]
[1748672392049,178.35382944,154.95,154.9,22.03533438]
[1748672392250,178.35382944,154.95,154.9,28.49102324]
[1748672392251,200.38916382,154.95,154.9,28.49102324]
[1748672392441,22.03533438,154.94,154.9,6.45568886]
[1748672392639,22.03533438,154.94,154.9,28.49102324]
[1748672393953,145.9,154.95,154.91,22.03533438]
[1748672394152,145.9,154.95,154.9,28.49102324]
[1748672394357,167.93533438,154.95,154.9,28.49102324]
[1748672395167,167.93533438,154.95,154.91,22.03533438]
[1748672397075,22.03533438,154.94,154.88,6.74093471]
[1748672397255,22.03533438,154.94,154.89,22.03533438]
[1748672397944,174.38911479,154.95,154.9,22.03533438]
[1748672398870,152.35378041,154.95,154.9,28.49102402]
[1748672399061,174.38911479,154.95,154.9,28.49102402]
[1748672399560,22.03533438,154.94,154.89,22.03533438]
[1748672400647,174.38911479,154.95,154.9,22.03533438]
[1748672401769,174.38911479,154.95,154.89,22.03533438]
[1748672401770,22.03533438,154.93,154.89,22.03533438]
[1748672402655,22.03533438,154.93,154.89,28.49146828]
[1748672402851,174.38913128,154.95,154.9,22.03533438]
[1748672403075,152.3537969,154.95,154.9,22.03533438]
[1748672403373,174.38913128,154.95,154.9,22.03533438]
[1748672404284,174.38913128,154.95,154.9,28.49110277]
[1748672404648,167.93533438,154.95,154.91,22.03533438]
[1748672404872,145.9,154.95,154.91,22.03533438]
[1748672405875,167.93533438,154.95,154.91,22.03533438]
[1748672406252,167.93533438,154.95,154.9,22.03533438]
[1748672407372,22.03533438,154.93,154.89,22.03533438]
[1748672407674,152.35385081,154.95,154.89,22.03533438]
[1748672407675,22.03533438,154.94,154.89,22.03533438]
[1748672407863,22.03533438,154.94,154.9,22.03533438]
[1748672408585,152.35378781,154.95,154.9,28.49109926]
[1748672408883,167.93533438,154.95,154.91,22.03533438]
[1748672410268,167.93533438,154.95,154.91,28.49069435]
[1748672411462,145.9,154.95,154.92,22.03533438]
[1748672411676,145.9,154.95,154.91,28.49069435]
[1748672411900,167.93533438,154.95,154.91,28.49069435]
[1748672412901,145.9,154.95,154.92,22.03533438]
[1748672413061,22.03533438,154.97,154.93,22.03533438]
[1748672414068,22.03533438,154.97,154.93,28.48977204]
[1748672416402,22.03533438,154.97,154.93,22.03533438]
[1748672416704,22.03533438,154.97,154.93,28.48978334]
[1748672417298,28.48791003,154.98,154.93,28.48978334]
[1748672417677,22.03533438,154.98,154.94,22.03533438]
[1748672417997,29.38795617,154.99,154.94,22.03533438]
[1748672418501,28.48815279,154.98,154.93,22.03533438]
[1748672419490,28.48815279,154.98,154.93,28.48984398]
[1748672419985,22.03533438,154.97,154.92,22.03533438]
[1748672421286,22.03533438,154.97,154.92,28.49020741]
[1748672421588,28.4882162,154.97,154.92,28.49020741]
[1748672422366,28.4882162,154.97,154.93,22.03533438]
[1748672424286,22.03533438,154.97,154.93,22.03533438]
[1748672426675,22.03533438,154.95,154.9,6.45544908]
[1748672426873,6.4530212,154.97,154.9,28.49078346]
[1748672426874,22.03533438,154.94,154.9,28.49078346]
[1748672427101,22.03533438,154.95,154.9,28.49078346]
[1748672427913,28.48923535,154.95,154.9,28.49078346]
[1748672428211,22.03533438,154.95,154.91,22.03533438]
[1748672430936,6.45344521,154.96,154.91,22.03533438]
[1748672431099,22.03533438,154.95,154.91,22.03533438]
[1748672431490,22.03533438,154.95,154.9,22.03533438]
[1748672431906,28.48927319,154.95,154.9,22.03533438]
[1748672432211,28.48927319,154.95,154.9,28.49103187]
[1748672432623,28.48927319,154.95,154.91,22.03533438]
[1748672432931,26.9004775,154.99,154.92,22.03533438]
[1748672433230,22.03533438,154.97,154.92,22.03533438]
[1748672433595,22.03533438,154.97,154.93,22.03533438]
[1748672433788,28.48777985,154.98,154.93,28.48978842]
[1748672435087,22.03533438,154.97,154.93,28.48978842]
[1748672435814,6.45244547,154.98,154.93,28.48978842]
[1748672435994,22.03533438,154.98,154.94,22.03533438]
[1748672437885,22.93581188,154.99,154.95,6.45369474]
[1748672438102,22.93581188,154.99,154.95,28.48902912]
[1748672438103,0.9004775,154.99,154.95,28.48902912]
[1748672438489,22.93581188,154.99,154.95,28.48902912]
[1748672439526,0.9004775,154.99,154.95,28.48902912]
[1748672439724,0.9004775,154.99,154.95,22.03533438]
[1748672440714,0.9004775,154.99,154.95,28.48893575]
[1748672440919,22.93581188,154.99,154.95,28.48893575]
[1748672441116,0.9004775,154.99,154.96,22.03533438]
[1748672441297,0.9004775,154.99,154.98,22.03533438]
[1748672443319,0.9004775,154.99,154.98,28.48777985]
[1748672448617,0.9004775,154.99,154.98,73.27959028]
[1748672448794,0.9004775,154.99,154.98,73.42175185]
[1748672449220,0.9004775,154.99,154.98,6.45244547]
[1748672449422,0.9004775,154.99,154.98,22.03533438]
[1748672450707,0.9004775,154.99,154.98,28.48777985]
[1748672451922,0.9004775,154.99,154.98,20.51319355]
[1748672460225,0.9004775,154.99,154.98,14.06074808]
[1748672461004,0.9004775,154.99,154.98,20.51319355]
[1748672462942,0.9004775,154.99,154.97,10.1]
[1748672464807,0.9004775,154.99,154.96,20.51401645]
[1748672467810,0.9004775,154.99,154.98,32.85255851]
[1748672469206,0.9004775,154.99,154.98,39.30500398]
[1748672470132,0.9004775,154.99,154.98,47.21324261]
[1748672472328,0.9004775,154.99,154.97,64.52172223]
[1748672472845,0.9004775,154.99,154.98,40.76079714]
[1748672474044,0.9004775,154.99,154.98,40.90295871]
[1748672474399,0.9004775,154.99,154.98,47.35540418]
[1748672477850,0.9004775,154.99,154.98,48.94570418]
[1748672480650,0.9004775,154.99,154.98,47.07108104]
[1748672481026,0.9004775,154.99,154.98,47.21324261]
[1748672481225,0.9004775,154.99,154.98,47.35540418]
[1748672489272,0.9004775,154.99,154.98,47.21324261]
[1748672490963,0.9004775,154.99,154.98,47.35540418]
[1748672494336,0.9004775,154.99,154.98,25.2442559]
[1748672494555,0.9004775,154.99,154.97,32.06898671]
[1748672494756,0.9004775,154.99,154.97,38.52170459]
[1748672494941,0.9004775,154.99,154.98,21.96898671]
[1748672496742,0.9004775,154.99,154.97,32.06898671]
[1748672497164,0.9004775,154.99,154.98,21.96898671]
[1748672498463,0.9004775,154.99,154.97,10.1]
[1748672498771,0.9004775,154.99,154.98,21.96898671]
[1748672499153,0.9004775,154.99,154.97,32.06898671]
[1748672499566,0.9004775,154.99,154.98,21.96898671]
[1748672500640,0.9004775,154.99,154.98,28.42143218]
[1748672502576,0.9004775,154.99,154.98,47.21324261]
[1748672503363,0.9004775,154.99,154.98,25.2442559]
[1748672503664,0.9004775,154.99,154.98,47.21324261]
[1748672506253,0.9004775,154.99,154.98,21.96898671]
[1748672507046,0.9004775,154.99,154.97,16.5526953]
[1748672507273,0.9004775,154.99,154.98,21.96898671]
[1748672508863,0.9004775,154.99,154.97,10.1]
[1748672509779,0.9004775,154.99,154.97,16.5528173]
[1748672510171,0.9004775,154.99,154.97,10.1]
[1748672511863,22.86946421,154.99,154.97,10.1]
[1748672512078,22.86946421,154.99,154.94,39.17223357]
[1748672512079,14.06858923,154.98,154.94,39.17223357]
[1748672512284,14.96906673,154.99,154.94,39.17223357]
[1748672512963,14.96906673,154.99,154.95,14.06858923]
[1748672513160,14.96906673,154.99,154.95,20.52222799]
[1748672513991,22.88382433,154.99,154.95,28.43698559]
[1748672514286,0.9004775,154.99,154.95,28.43698559]
[1748672521289,0.9004775,154.99,154.96,28.43662447]
[1748672521875,0.9004775,154.99,154.96,21.98334683]
[1748672522964,0.9004775,154.99,154.95,6.45355157]
[1748672522965,7.35254726,154.99,154.95,21.98334683]
[1748672523185,0.9004775,154.99,154.95,28.4369841]
[1748672524115,21.98334683,154.96,154.93,10.14]
[1748672524389,21.98334683,154.94,154.9,28.43902321]
[1748672524568,21.98334683,154.94,154.9,28.43905826]
[1748672524765,21.98334683,154.95,154.91,21.98334683]
[1748672525194,21.98334683,154.96,154.91,21.98334683]
[1748672525392,21.98334683,154.96,154.91,28.43865304]
[1748672525599,21.98334683,154.97,154.93,21.98334683]
[1748672526174,21.98334683,154.97,154.92,21.98334683]
[1748672526895,21.98334683,154.96,154.92,21.98334683]
[1748672527389,21.98334683,154.95,154.91,21.98334683]
[1748672528098,21.98334683,154.95,154.9,28.43901516]
[1748672529388,28.43710952,154.95,154.9,28.43901516]
[1748672529880,21.98334683,154.95,154.9,28.43901516]
[1748672530080,21.98334683,154.95,154.91,21.98334683]
[1748672531091,28.43678504,154.96,154.91,28.43859313]
[1748672531280,145.9,154.98,154.92,21.98334683]
[1748672531603,21.98334683,154.96,154.92,21.98334683]
[1748672532696,21.98334683,154.96,154.92,28.43791754]
[1748672535106,21.98334683,154.96,154.92,6.45457071]
[1748672535481,21.98334683,154.96,154.92,28.43791754]
[1748672535999,14.07443184,154.96,154.92,20.52900255]
[1748672536898,14.07443184,154.96,154.91,14.07443184]
[1748672537301,14.07443184,154.96,154.92,14.07443184]
[1748672538178,14.07443184,154.96,154.92,20.52905523]
[1748672539906,14.07443184,154.96,154.92,6.45462339]
[1748672540083,14.07443184,154.95,154.91,14.07443184]
[1748672541300,14.07443184,154.95,154.91,6.45534202]
[1748672542315,152.35247823,154.98,154.91,20.52977386]
[1748672542480,14.07443184,154.96,154.91,20.52977386]
[1748672543280,14.07443184,154.96,154.89,28.93181043]
[1748672543485,14.07443184,154.96,154.91,14.07443184]
[1748672543686,14.07443184,154.97,154.92,14.07443184]
[1748672545604,14.07443184,154.97,154.93,6.45452785]
[1748672546417,14.07443184,154.97,154.92,20.52921654]
[1748672546721,14.07443184,154.96,154.92,6.4547847]
[1748672547818,14.07443184,154.97,154.92,14.07443184]
[1748672549111,14.07443184,154.97,154.92,20.52899957]
[1748672551806,159.97443184,154.98,154.93,14.07443184]
[1748672552194,145.9,154.98,154.95,6.45369474]
[1748672555412,159.97443184,154.98,154.94,20.5284156]
[1748672557507,159.97443184,154.98,154.94,6.45398376]
[1748672561305,159.97443184,154.98,154.94,14.07443184]
[1748672561606,159.97443184,154.98,154.96,14.07443184]
[1748672561607,145.9,154.98,154.96,14.07443184]
[1748672561808,0.9004775,154.99,154.96,14.07443184]
[1748672563527,0.9004775,154.99,154.96,20.5273622]
[1748672567926,0.9004775,154.99,154.97,14.07443184]
[1748672568129,0.9004775,154.99,154.96,20.5273622]
[1748672571623,0.9004775,154.99,154.97,14.07443184]
[1748672571926,0.9004775,154.99,154.97,20.52690477]
[1748672575105,0.9004775,154.99,154.97,14.07443184]
[1748672580636,0.9004775,154.99,154.96,6.45311531]
[1748672580839,0.9004775,154.99,154.97,14.07443184]
[1748672581211,0.9004775,154.99,154.96,6.45311531]
[1748672581418,0.9004775,154.99,154.97,14.07443184]
[1748672585324,0.9004775,154.99,154.95,14.07443184]
[1748672585828,0.9004775,154.99,154.96,14.07443184]
[1748672591566,7.35263235,154.99,154.96,14.07443184]
[1748672592129,0.9004775,154.99,154.96,14.07443184]
[1748672593148,0.9004775,154.99,154.97,14.07443184]
[1748672597979,0.9004775,154.99,154.96,14.07443184]
[1748672600180,0.9004775,154.99,154.97,14.07443184]
[1748672600361,0.9004775,154.99,154.98,14.07443184]
[1748672603575,0.9004775,154.99,154.98,20.52687731]
[1748672604670,0.9004775,154.99,154.98,39.46084931]
[1748672604866,0.9004775,154.99,154.98,78.72084931]
[1748672608489,0.9004775,154.99,154.98,64.5042559]
[1748672608665,0.9004775,154.99,154.98,78.57868774]
[1748672611174,0.9004775,154.99,154.98,72.12624227]
[1748672611403,0.9004775,154.99,154.97,14.07443184]
[1748672613081,0.9004775,154.99,154.95,32.86624227]
[1748672613988,0.9004775,154.99,154.94,10.1]
[1748672613989,14.07443184,154.98,154.94,10.1]
[1748672614190,14.07443184,154.97,154.94,10.1]
[1748672615088,14.07443184,154.95,154.9,16.55568309]
[1748672615293,14.07443184,154.94,154.9,10.1]
[1748672615690,14.07443184,154.96,154.91,14.07443184]
[1748672616191,14.07443184,154.95,154.91,14.07443184]
[1748672616707,14.07443184,154.95,154.91,20.52957433]
[1748672622296,12.77138281,154.98,154.91,20.52957433]
[1748672622494,14.07443184,154.95,154.91,20.52957433]
[1748672623104,6.3189,154.98,154.92,14.07443184]
[1748672623414,14.07443184,154.98,154.93,14.07443184]
[1748672623713,153.2526248,154.99,154.93,14.07443184]
[1748672623714,14.07443184,154.97,154.93,14.07443184]
[1748672624103,14.07443184,154.97,154.93,6.45431262]
[1748672627699,14.07443184,154.96,154.93,6.45431262]
[1748672628817,14.07443184,154.95,154.92,6.45479338]
[1748672633197,6.45254885,154.98,154.92,20.52922522]
[1748672633410,14.07443184,154.95,154.91,6.45520411]
[1748672637807,14.07443184,154.95,154.91,20.52963595]
[1748672638519,14.07443184,154.98,154.93,14.07443184]
[1748672639215,14.07443184,154.97,154.93,14.07443184]
[1748672639527,14.07443184,154.98,154.94,6.45411126]
[1748672639736,14.07443184,154.97,154.93,6.45438547]
[1748672639936,14.07443184,154.96,154.93,6.45438547]
[1748672640129,14.07443184,154.96,154.92,25.24658895]
[1748672640326,153.25265143,154.99,154.91,14.07443184]
[1748672640627,14.07443184,154.95,154.91,14.07443184]
[1748672640828,14.07443184,154.95,154.9,24.17443184]
[1748672641052,13.56358799,154.95,154.91,6.45530658]
[1748672643659,13.56358799,154.95,154.91,20.52973842]
[1748672644356,14.07443184,154.96,154.91,20.52973842]
[1748672647043,14.07443184,154.95,154.91,20.52973842]
[1748672648454,14.07443184,154.95,154.91,6.45530658]
[1748672651358,146.8004775,154.99,154.91,6.45530658]
[1748672651579,160.87490934,154.99,154.94,14.07443184]
[1748672651847,14.97490934,154.99,154.95,14.07443184]
[1748672652563,0.9004775,154.99,154.95,14.07443184]
[1748672654151,0.9004775,154.99,154.96,6.45327826]
[1748672654556,14.97490934,154.99,154.95,6.45357714]
[1748672660251,0.9004775,154.99,154.95,20.52800898]
[1748672660455,14.97490934,154.99,154.95,20.52800898]
[1748672663540,0.9004775,154.99,154.95,20.52800898]
[1748672663743,14.97490934,154.99,154.95,20.52800898]
[1748672665437,14.07443184,154.97,154.93,10.1]
[1748672665660,14.07443184,154.96,154.93,10.1]
[1748672666768,7.35262637,154.99,154.9,39.17970992]
[1748672666769,14.07443184,154.95,154.9,39.17970992]
[1748672670866,14.07443184,154.94,154.9,39.17970992]
[1748672672675,14.07443184,154.95,154.9,39.17970992]
[1748672673255,14.07443184,154.95,154.91,14.07443184]
[1748672673457,14.07443184,154.96,154.91,14.07443184]
[1748672674356,14.07443184,154.96,154.92,6.45494448]
[1748672676674,14.07443184,154.97,154.92,20.52937632]
[1748672679364,14.07443184,154.96,154.92,20.52937632]
[1748672683669,6.45248204,154.98,154.92,20.52937632]
[1748672684058,14.07443184,154.97,154.92,20.52937632]
[1748672685761,14.07443184,154.96,154.91,49.40160344]
[1748672686055,14.07443184,154.96,154.92,14.07443184]
[1748672686968,14.07443184,154.96,154.93,6.45452785]
[1748672688173,14.07443184,154.96,154.92,6.45494448]
[1748672689816,6.45248204,154.98,154.92,6.45494448]
[1748672689979,14.07443184,154.96,154.92,6.45494448]
[1748672693590,14.07443184,154.96,154.92,20.52937632]
[1748672694490,146.8004775,154.99,154.93,14.07443184]
[1748672694695,14.07443184,154.97,154.93,14.07443184]
[1748672694890,14.07443184,154.98,154.93,14.07443184]
[1748672695600,146.8004775,154.99,154.93,14.07443184]
[1748672695884,14.07443184,154.98,154.94,6.45411126]
[1748672696295,146.8004775,154.99,154.95,32.86624227]
[1748672696495,160.87490934,154.99,154.94,20.5285431]
[1748672697172,14.07443184,154.98,154.94,20.5285431]
[1748672698798,146.8004775,154.99,154.94,20.5285431]
[1748672698799,160.87490934,154.99,154.94,20.5285431]
[1748672699984,14.97490934,154.99,154.94,20.5285431]
[1748672701699,14.07443184,154.98,154.94,6.45411126]
[1748672703196,14.97490934,154.99,154.94,20.5285431]
[1748672703712,0.9004775,154.99,154.94,20.5285431]
[1748672703876,14.97490934,154.99,154.94,20.5285431]
[1748672704581,14.07443184,154.98,154.94,20.5285431]
[1748672704770,14.07443184,154.97,154.93,6.45447828]
[1748672705191,14.07443184,154.98,154.94,14.07443184]
[1748672705389,0.9004775,154.99,154.94,14.07443184]
[1748672705589,14.97490934,154.99,154.94,14.07443184]
[1748672706101,0.9004775,154.99,154.94,14.07443184]
[1748672706323,0.9004775,154.99,154.96,14.07443184]
[1748672707097,0.9004775,154.99,154.97,14.07443184]
[1748672708196,0.9004775,154.99,154.98,6.45244547]
[1748672710212,0.9004775,154.99,154.97,20.52723803]
[1748672716497,0.9004775,154.99,154.97,6.45280619]
[1748672716798,0.9004775,154.99,154.97,20.52723803]
[1748672718502,0.9004775,154.99,154.98,59.00840384]
[1748672720287,0.9004775,154.99,154.97,6.45280619]
[1748672721210,0.9004775,154.99,154.97,20.52723803]
[1748672721710,0.9004775,154.99,154.98,32.86624227]
[1748672723005,0.9004775,154.99,154.98,39.31868774]
[1748672723998,0.9004775,154.99,154.98,20.52687731]
[1748672730115,0.9004775,154.99,154.97,6.45274574]
[1748672730830,0.9004775,154.99,154.98,14.07443184]
[1748672731795,0.9004775,154.99,154.98,20.52687731]
[1748672737634,0.9004775,154.99,154.98,6.45244547]
[1748672737825,0.9004775,154.99,154.98,20.52687731]
[1748672738802,0.9004775,154.99,154.98,39.31868774]
[1748672743103,0.9004775,154.99,154.98,20.52687731]
[1748672744630,0.9004775,154.99,154.97,25.24467227]
[1748672744808,0.9004775,154.99,154.98,14.07443184]
[1748672746614,0.9004775,154.99,154.98,20.52687731]
[1748672747320,0.9004775,154.99,154.98,39.31868774]
[1748672760429,0.9004775,154.99,154.98,6.45244547]
[1748672761155,0.9004775,154.99,154.98,20.52687731]
[1748672761531,0.9004775,154.99,154.97,6.45286184]
[1748672761736,14.97490934,154.99,154.94,14.07443184]
[1748672762354,14.97490934,154.99,154.95,14.07443184]
[1748672762855,0.9004775,154.99,154.98,14.07443184]
[1748672764227,0.9004775,154.99,154.96,14.07443184]
[1748672766752,0.9004775,154.99,154.96,20.52756241]
[1748672766952,0.9004775,154.99,154.97,14.07443184]
[1748672768949,0.9004775,154.99,154.96,14.07443184]
[1748672770155,0.9004775,154.99,154.97,6.45286184]
[1748672770664,0.9004775,154.99,154.96,20.52756194]
[1748672771176,0.9004775,154.99,154.96,6.4531301]
[1748672773139,0.9004775,154.99,154.95,6.45355654]